Cogmind - Beta 15 *** ADVENTURER MODE // 2025.06.22 @ 00:35:15 // Winter2019/RPGLIKE Player: H_ Result: Destroyed by D-53 Grenadier with Mini Grenade Launcher Performance ------------- Evolutions (0) 0 Regions Visited (2) 400 Robots Destroyed (28) 140 Value Destroyed (600) 600 Prototype IDs (4) 80 Alien Tech Used (0) 0 Bonus (25) 25 TOTAL SCORE: 1245 Bonus ------- Follower Combat Kills 25 Cogmind --------- Core Integrity 0/600 Matter 234/300 Energy 250/250 System Corruption 1% Temperature Cool (0) Movement Treading (160) Location -10/Mines Parts ------- > --- POWER (1) -------- Ion Engine > --- PROPULSION (1) --- Light Treads > --- UTILITY (3) ------ Structural Scanner Improved Terrain Scanner > --- WEAPON (2) ------- Minigun Assault Cannon > --- INVENTORY (3) ---- Hacking Suite Autogun Heavy Battle Rifle Peak State ------------ > --- POWER ------------ Ion Engine > --- PROPULSION ------- Light Treads > --- UTILITY ---------- Structural Scanner Improved Terrain Scanner > --- WEAPON ----------- Autogun Minigun > --- INVENTORY -------- Hacking Suite Heavy Battle Rifle Assault Cannon [Rating: 12] Favorites ----------- Power Ion Engine Engine Ion Engine Propulsion Light Treads Treads Light Treads Utility Improved Terrain Scanner Device Improved Terrain Scanner Weapon Autogun Ballistic Gun Autogun Ballistic Cannon Assault Cannon Launcher Grenade Launcher Special Weapon Mining Laser Build | -11 -10 -10 ------- Run | Yrd Mat Min Slots Evolved 3 | 2 . 1 Power . | . . . Propulsion . | . . . Utility 2 | 1 . 1 Weapon 1 | 1 . . Parts Attached 14 | 6 5 3 Power 1 | 1 . . Engine 1 | 1 . . Core . | . . . Reactor . | . . . Propulsion 1 | 1 . . Treads 1 | 1 . . Leg . | . . . Wheel . | . . . Hover . | . . . Flight . | . . . Utility 4 | 2 2 . Device 4 | 2 2 . Storage . | . . . Processor . | . . . Hackware . | . . . Protection . | . . . Artifact . | . . . Weapon 8 | 2 3 3 Energy Gun . | . . . Energy Cannon . | . . . Ballistic Gun 5 | 2 2 1 Ballistic Cannon 1 | . . 1 Launcher 1 | . . 1 Special Weapon 1 | . 1 . Impact Weapon . | . . . Slashing Weapon . | . . . Piercing Weapon . | . . . Special Melee Weapon . | . . . Unidentified Prototypes . | . . . Parts Lost . | . . . Power . | . . . Propulsion . | . . . Utility . | . . . Weapon . | . . . Highest Loss Streak . | . . . To Critical Strikes . | . . . Average Backups 1 | 1 1 1 Power . | . . . Propulsion . | . . . Utility . | . . . Weapon 1 | . 1 1 Tool/Special . | . . . Unused Backups 3 | . . 3 Power . | . . . Propulsion . | . . . Utility 1 | . . 1 Weapon 2 | . . 2 Tool/Special . | . . . Average Slot Usage (%) 97 | . 99 93 Engine 15 | . 16 15 Treads 15 | . 16 15 Device 31 | . 32 30 Ballistic Gun 32 | . 33 30 Peak Build Rating 12 | 8 11 12 Average Rating 9 | 3 8 10 On Entrance 6 | . 8 10 Naked Turns . | . . . Heaviest Build 15 | 9 13 15 Greatest Support 31 | 25 31 25 Greatest Overweight (x) . | . . . Average Overweight (x) . | . . . Largest Inventory Capacity 3 | 2 3 3 Average Capacity 2 | 2 2 3 Most Carried 3 | 2 2 3 Average Carried 1 | 1 1 1 Final Capacity 3 | 2 3 3 Final Carried 3 | 1 1 3 Class Distribution -------------------- 57% | Hacker-Mutant 42% | Hacker-Skirmisher Dominant Class ---------------- Hacker-Mutant | -10/Materials Hacker-Skirmisher | -10/Mines Resources | -11 -10 -10 ----------- Run | Yrd Mat Min Matter Collected 633 | 122 419 92 Remotely . | . . . Salvage Created 788 | 92 612 84 Parts 50 | 9 29 12 Haulers Intercepted . | . . . Recyclers Shooed 1 | . 1 . Parts Field Recycled . | . . . Retrieved Matter . | . . . Parts Self-Destructed . | . . . Prevented . | . . . Kills | -11 -10 -10 ------- Run | Yrd Mat Min Combat Hostiles Destroyed 18 | . 12 6 Guns 18 | . 12 6 Classes Destroyed 8 | 2 4 2 Worker 1 | . 1 . Builder 2 | . 1 1 Tunneler 4 | 3 . 1 Recycler 2 | 1 1 . Watcher 2 | . 2 . Swarmer 5 | . . 5 Grunt 12 | . 12 . Assembled 1 | . . 1 Best Kill Streak 3 | 2 3 3 Combat Bots Only 3 | . 3 3 Max Kills in Single Turn 2 | 1 2 1 Gunslinging 1 | . 1 . Exploded . | . . . Melee . | . . . Uniques/NPCs Destroyed . | . . . Combat | -11 -10 -10 -------- Run | Yrd Mat Min Hostile Shots Fired 126 | . 90 36 Missed 34 | . 28 6 Hits 92 | . 62 30 Melee 3 | . . 3 Projectile 89 | . 62 27 AOE 11 | . . 11 Critical Strikes 2 | . 1 1 Damage Taken 1258 | . 686 572 Core 1019 | . 563 456 Absorbed by Shields . | . . . Redirected to Core 806 | . 400 406 Ignored by Resistances 372 | . 211 161 Core Remaining (%) 100 | 100 . . Volleys Fired 89 | 12 62 15 Largest 2 | 2 2 2 Hottest 100 | 40 100 62 Shots Fired 178 | 24 123 31 Gun 176 | 24 122 30 Cannon 1 | . . 1 Launcher . | . . . Special 1 | . 1 . Kinetic 177 | 24 122 31 Thermal 1 | . 1 . Explosive . | . . . Electromagnetic . | . . . Robot Hit Streak 26 | 19 26 18 Robot Miss Streak 3 | 1 3 2 Penetration Max . | . . . Secondary Targets 3 | . 1 2 Max Gunslinging Chain 1 | . 1 1 Shots Hit Robots 135 | 20 92 23 Core Hits 60 | 9 40 11 Critical Kills . | . . . Critical Parts Destroyed . | . . . Critical Strikes . | . . . Melee Attacks . | . . . Impact . | . . . Slashing . | . . . Piercing . | . . . Sneak Attacks . | . . . Combat Hostiles . | . . . Follow-up Attacks . | . . . Damage Inflicted 1425 | 158 873 394 Guns 1333 | 158 817 358 Cannons 28 | . . 28 Explosions 56 | . 56 . Melee . | . . . Ramming 8 | . . 8 Kinetic 1361 | 158 817 386 Thermal . | . . . Explosive 56 | . 56 . Electromagnetic . | . . . Impact . | . . . Slashing . | . . . Piercing . | . . . Highest Corruption 1 | . 1 1 Average Corruption 1 | . 1 1 Corruption Purged . | . . . Corruption Blocked . | . . . Effects 6 | . 2 4 Message Errors 2 | . . 2 Matter Fused 1 | . 1 . Heat Flow Errors 1 | . 1 . Data Loss (major) 1 | . . 1 Misfires 1 | . . 1 Overload Shots . | . . . Overflow Damage 11 | . 11 . Projectiles . | . . . Explosions 11 | . 11 . Melee . | . . . Knockbacks 1 | . . 1 Impact . | . . . Kinetic 1 | . . 1 Secondary . | . . . Self-Inflicted Damage 52 | . 52 . Shots 1 | . 1 . Rammed 2 | . . 2 Targets Rammed 3 | . 1 2 Kicked . | . . . Crushed 1 | . 1 . Highest Temperature 200 | . 200 . Average Temperature 91 | . 91 . Received Heat Transfer 543 | . 483 60 Siege Activations . | . . . Martial Activations . | . . . Shielding Activations . | . . . Robots Disrupted . | . . . Combat Hostiles . | . . . Robots Corrupted . | . . . Combat Hostiles . | . . . Parts Fried . | . . . Impact Corruptions . | . . . Robots Melted . | . . . Combat Hostiles . | . . . Parts Melted . | . . . Heat Transferred . | . . . Parts Sabotaged . | . . . Parts Stolen . | . . . Parts Stripped . | . . . Power Chain Reactions . | . . . Alert | -11 -10 -10 ------- Run | Yrd Mat Min Maximum Alert Level . | . . . Low Security (%) 100 | 100 100 100 Level 1 . | . . . Level 2 . | . . . Level 3 . | . . . Level 4 . | . . . Level 5 . | . . . High Security . | . . . Max Security . | . . . Peak Influence 88 | 10 88 82 Initial . | . . . Average 25 | 1 30 19 Influence Increases 602 | 20 430 152 Destroy 0b10 Robot/C 360 | . 240 120 Destroy 0b10 Robot/NC 55 | 20 25 10 Destroy Leader 84 | . 64 20 Allied During Kill 2 | . . 2 Successful Hack 21 | . 21 . Select Force Hacks 60 | . 60 . Disable Machine 18 | . 18 . Destroy Structure 2 | . 2 . Influence Decreases 602 | 20 430 152 Time Decay 602 | 20 430 152 Squads Dispatched 4 | . 3 1 Investigation 4 | . 3 1 Extermination . | . . . Reinforcement . | . . . Assault . | . . . Garrison . | . . . Intercept . | . . . Searches Triggered . | . . . Construction Impeded . | . . . Haulers Reinforced . | . . . Active Scanning Responses . | . . . Cargo Convoy Interrupts . | . . . Stealth | -11 -10 -10 --------- Run | Yrd Mat Min Distress Signals 1 | . 1 . Communications Jammed . | . . . Distress Signals . | . . . Times Spotted 46 | . 20 26 Peak Tracking Total 20 | . 4 20 Tactical Retreats 3 | . . 3 Traps | -11 -10 -10 ------- Run | Yrd Mat Min Traps Triggered 1 | . 1 . Indirectly . | . . . Trap Hack Attempts . | . . . Triggered . | . . . Disarmed . | . . . Reprogrammed . | . . . Reused . | . . . Traps Extracted . | . . . Installed . | . . . Triggered . | . . . Machines | -11 -10 -10 ---------- Run | Yrd Mat Min Machines Disabled 2 | . 2 . Max in Single Turn 1 | . 1 . Machines Repaired . | . . . Machines Dismantled . | . . . Machines Sabotaged . | . . . Overloaded Fab Kills . | . . . Hacking | -11 -10 -10 --------- Run | Yrd Mat Min Machines Accessed 11 | . 10 1 Terminals 8 | . 8 . Fabricators . | . . . Repair Stations . | . . . Recycling Units 2 | . 2 . Scanalyzers . | . . . Garrison Access . | . . . Total Hacks 47 | . 46 1 Successful 39 | . 38 1 Failed 7 | . 7 . Catastrophic . | . . . Database Lockouts 1 | . 1 . Manual 27 | . 27 . Terminals 41 | . 41 . Fabricators . | . . . Repair Stations . | . . . Recycling Units 5 | . 5 . Scanalyzers . | . . . Garrison Access . | . . . Terminal Hacks 18 | . 17 1 Robot Analysis 3 | . 3 . Prototype ID Bank 4 | . 4 . Open Door 1 | . . 1 Level Access Points 1 | . 1 . Branch Access Points 1 | . 1 . Emergency Access Points 1 | . 1 . Terminal Index 1 | . 1 . Recycling Unit Index 1 | . 1 . Locate Traps 3 | . 3 . Registered Components 1 | . 1 . Zone Layout 1 | . 1 . Fabricator Hacks . | . . . Repair Station Hacks . | . . . Recycling Unit Hacks 3 | . 3 . Retrieve Matter 1 | . 1 . Retrieve Components 2 | . 2 . Scanalyzer . | . . . Garrison Access Hacks . | . . . Unauthorized Hacks 18 | . 18 . Terminals 16 | . 16 . Track 1 | . 1 . Botnet 8 | . 8 . Disrupt 1 | . 1 . Skim 6 | . 6 . Fabricators . | . . . Repair Stations . | . . . Recycling Units 2 | . 2 . Tunnel 2 | . 2 . Scanalyzers . | . . . Garrison Access . | . . . Data Cores Recovered . | . . . Used . | . . . Hacking Detections 9 | . 9 . Full Trace Events 1 | . 1 . Feedback Events . | . . . Feedback Blocked . | . . . Robot Schematics Acquired . | . . . Robots Built . | . . . Authchips . | . . . Time . | . . . Total Robot Build Rating . | . . . Part Schematics Acquired . | . . . Parts Built . | . . . Authchips . | . . . Time . | . . . Total Part Build Rating . | . . . Parts Repaired . | . . . Time . | . . . Parts Recycled . | . . . Recycled Matter . | . . . Retrieved Matter . | . . . Retrieved Components 11 | . 11 . Parts Scanalyzed . | . . . Part Schematics Acquired . | . . . Parts Damaged . | . . . Bothacking | -11 -10 -10 ------------ Run | Yrd Mat Min Used RIF Installer . | . . . Robots Hacked . | . . . Non-combat . | . . . Combat . | . . . Robot Hacks Applied . | . . . Relay Couplers Released . | . . . Fabnet Peak Effective % . | . . . Robots Rewired . | . . . Allies Hacked . | . . . Hacks Repelled . | . . . Allies | -11 -10 -10 -------- Run | Yrd Mat Min Total Allies 1 | . . 1 Largest Group 1 | . . 1 Highest-Rated Group 31 | . . 31 Highest-Rated Ally 31 | . . 31 Total Orders . | . . . Ally Attacks 10 | . . 10 Total Damage 130 | . . 130 Kills 3 | . . 3 Allies Corrupted . | . . . Allies Melted . | . . . Intel | -11 -10 -10 ------- Run | Yrd Mat Min Active Infowar (turns) 1700 | 26 1096 578 Terrain 1700 | 26 1096 578 Structural 766 | . 188 578 Seismic 790 | 24 766 . Robot Analysis Total 3 | . 3 . Derelict Logs Recovered . | . . . Drone Launches . | . . . Drone Recoveries . | . . . Exploration | -11 -10 -10 ------------- Run | Yrd Mat Min Turns Passed 1784 | 110 1096 578 Spaces Moved 925 | 43 558 324 Core 6 | 6 . . Treads 919 | 37 558 324 Legs . | . . . Wheels . | . . . Hover . | . . . Flight . | . . . Fastest Speed 50 | 50 160 160 Average Speed 159 | 144 160 160 Slowest Speed 160 | 160 160 160 Overloaded Moves . | . . . Propulsion Burnouts . | . . . Robots Hopped . | . . . Potential Cave-ins . | . . . Cave-ins Triggered . | . . . Exploration Rate (%) 44 | 3 73 58 Regions Visited 2 Branch Regions 1 Pre-discovered Areas 5 | . 4 1 Known Exits Taken 1 | . 1 . Unknown Exits Taken 1 | 1 . . Scrap Searched 2 | . . 2 Spaces Dug . | . . . Terrain Destroyed 2 | . 2 . Melee . | . . . Projectile . | . . . AOE 2 | . 2 . Terrain Rammed . | . . . Walls Destroyed . | . . . Machines Disabled . | . . . Actions | -11 -10 -10 --------- Run | Yrd Mat Min Total 1091 | 71 660 360 Wait 13 | 5 8 . Move 923 | 42 557 324 Hop . | . . . Pick Up 15 | 6 3 6 Fast Attach 1 | 1 . . Attach 8 | 5 2 1 Detach 1 | . 1 . Swap 9 | . 6 3 Drop 8 | . 4 4 Fire 89 | 12 62 15 Melee . | . . . Ram . | . . . Kick . | . . . Crush 3 | . 1 2 Escape Stasis . | . . . Rewire . | . . . Trap . | . . . Miscellaneous 21 | . 16 5 Route ------- -11/Scrapyard -10/Materials (discovered 5 exits: *Mat x3 / *Min / [Sub]) -10/Mines (discovered 2 exits: *Mat / [*Exi]) History --------- Turn | Location | Event 1 | -11/Scrapyard | Upgraded with Utility slot (x1) 1 | -11/Scrapyard | Upgraded with Weapon slot (x1) 8 | -11/Scrapyard | Discovered new exit (range 16) 111 | -11/Scrapyard | Entered Materials 313 | -10/Materials | Build established: Hacker-Mutant 334 | -10/Materials | Discovered new exit (range 13) 336 | -10/Materials | Discovered new exit (range 8) 372 | -10/Materials | Core integrity fell below 50% 497 | -10/Materials | Central database locked down 530 | -10/Materials | Identified exit to Materials 593 | -10/Materials | Learned location of 1 exit from Storage 685 | -10/Materials | Learned location of 2 exits from Materials 712 | -10/Materials | Identified exit to Mines 730 | -10/Materials | Learned location of Recycling (-8) 736 | -10/Materials | Learned location of 1 exit from Recycling 737 | -10/Materials | Learned 2 Storage zone layouts 744 | -10/Materials | Learned location of 1 exit from Recycling 761 | -10/Materials | Learned location of Subcaves (-10) 789 | -10/Materials | Learned Storage terminal intel 909 | -10/Materials | Reached level 2 1207 | -10/Materials | Entered Mines 1208 | -10/Mines | Discovered new exit (range 10) 1212 | -10/Mines | Escorted by a lone wolf Derelict 1252 | -10/Mines | Received a Rocket Launcher from a helpful Derelict 1258 | -10/Mines | Discovered exit to Materials (range 16) 1288 | -10/Mines | Deemed a non-threat by the Exiles lab entrance 1328 | -10/Mines | Build established: Hacker-Skirmisher 1441 | -10/Mines | Found DCF Scrap (14 items) 1469 | -10/Mines | Met a Derelict shopkeep closing up shop 1528 | -10/Mines | Reached level 3 1530 | -10/Mines | Upgraded with Utility slot (x1) 1578 | -10/Mines | A weapon hastily lodged in a ceiling crevice suddenly fell to the ground 1718 | -10/Mines | Assembled infested the area 1778 | -10/Mines | Core integrity fell below 20% 1785 | -10/Mines | Destroyed by D-53 Grenadier with Mini Grenade Launcher Last Messages --------------- 01731_ as-20233 destroyed. 01732_ 09-I4T(g): "Mission, incomplete...*fzzt*" 01732_ 09-I4T(g) destroyed. 01735_ Slammed into K-01 Serf. 01743_ as-57947 destroyed. 01756_ Destroyed Asb. Hover Unit. 01762_ Slammed into T-07 Excavator. 01766_ C-30 ARC bursts open, deploying its payload. 01766_ D-53 Grenadier unfolds itself. 01769_ as-35747 destroyed. 01771_ The unstable cave ceiling collapses. 01771_ as-80768 destroyed. 01774_ as-84075 destroyed. 01776_ The unstable cave ceiling collapses. 01777_ as-62170 destroyed. 01779_ The unstable cave ceiling collapses. 01781_ K-01 Serf destroyed. 01784_ The unstable cave ceiling collapses. 01784_ D-53 Grenadier knocked back. 01784_ Destroyed Shock Absorption System. Map ----- +----------------------------------------------------+ | ##### #######?#?#????????????????? | | ######== ######## ## ###???#????????????????????? | | ==## ########## ## ? ??###?????????????????? | | ###*##[########## ######? ?#????????????????????? | | ###=##%########## #######???????????????????????? | | [ =!][*########## ####?#? ?????????????????????? | | %#!############# ##???#?#?????????????????????? | | ##!############# ##???##??????????????????????? | | ## ############# ##?#????#????????????????????? | | ## ###### #### ###???????????????????????????? | | ## ##### ## ####??#???????????????????????? | | ## #### #####?##?#???????????????????? | | ## ### ### #####??#????????????????????? | | ## ## ###### #######?#?#???????????????? | | ## # ######## ######???????????????????? | | ## # ######## ### #######?????##??#??#??##? | | ## ######### ##### ####?####??#?#??#?# ? | | ############### ###### #######?####??????? ?? | | ############# ####### ###?????#? ?? ?? ??? | | ########## ####### ######## ? ? ? ? | | ######### ### ########? ####?#??#? | | = * ### ###### ###??#?#?# | | ######### #### # ##### ####?####? | | ######## #### # *% #### ######?#####? | | ######## #### # = ### ########??##? | | ######### ## ### ## @ ## ###########?# | | ############# ## ## d #####?####### | | #####?######## ## ##########??? | | #?############# ################ | | ############## % ############### | | ########?###### d ## !%%%$[ | | ####?######?#### ### a ##%########## | | " #######???#?########## # #%########## | | " ############?######### # #########? | | " ##?###?##?############# # # ##?? | | ###########?######?######## # """##? | | ###############?##?######### """### | | ??#####?#######??########### ## """#### | | ?#??#??##???#??#######?##### ## #### | | ??#?????#?#?#?###?#?#?##?#### ############# | | ?#?#?????#???????##?#?####?## ################ | | ?#??#????????#???##?##?########################?#? | | | | | | | | | | | | | | | | | +----------------------------------------------------+ Best States ------------- Heat Dissipation 43 Energy Generation 15 Energy Capacity 250 Matter Stores 300 Matter Capacity 300 Sight Range 17 Robot Scan Range 10 Terrain Scan Range 16 Terrain Scan Density 210 Additional Mass Support 6 Resistance: KI 20 Resistance: TH 20 Resistance: EX 20 Resistance: EM 20 Resistance: I 20 Resistance: S 20 Resistance: P 20 Evasion (%) 50 Recoil Reduction 1 Offensive Hacking 25 Defensive Hacking 5 Item Schematics ----------------- None Robot Schematics ------------------ None Fabricated ------------ Nothing Repaired ---------- Nothing Alien Tech Used ----------------- None Achievements -------------- None Challenges ------------ None RPGLIKE | -11 -10 -10 --------- Run | Yrd Mat Min Levels Raised 2 | . 1 1 XP Earned 7102 | 4000 1890 1212 XP Spent 6950 | 4000 1500 1450 Upgrades 25 | 16 6 3 Utility Slot 2 | 1 . 1 Weapon Slot 1 | 1 . . Heat Dissipation 3 | 3 . . Energy Generation 1 | 1 . . Mass Support 1 | 1 . . Inventory Capacity 3 | 2 1 . Sight Range 1 | 1 . . Sensor Range 5 | . 4 1 Terrain Scan Density 2 | 2 . . Ranged Accuracy 2 | . 1 1 Hack Attack % 3 | 3 . . Hack Defense % 1 | 1 . . Protomatter Created 199 | . 152 47 Integrity Restored 428 | . 344 84 Core 408 | . 324 84 Parts 20 | . 20 . Protomatter Decayed 68 | . 13 55 Game ------ Seed QuantumDispersionLance Manual? 0 Play Time 00:29:39 Cumulative 203.5 hours Start 2025.06.22 @ 00:12:21 End 2025.06.22 @ 00:35:15 Sessions 1 Manual Loads 0 Difficulty Adventurer Special Mode Winter2019/RPGLIKE Game No. 52 Rogue 12 Adventurer 9 Explorer 31 Win Type - Total 4 Types 2/0/2/0/0/0/0/0/0/0 Lore% 55 Gallery% 65 Achievement% 70 Wizard Run 0 Options --------- Layout 0 ASCII 0 Keyboard 0 Movement Mouse Keybinds 0 Fullscreen 2 Font 24/Smallcaps Map View 76x50 Zoom Use 0% Tactical HUD 1 Map Filters NONE Filters NONE Steam 1 RUN: dcc7913a-abba-4457-94c7-9d00ea1ad665